Cogmind - Beta 16.1 @@@ ROGUE MODE // 2026.04.06 @ 10:55:19 Player: Anting Result: Destroyed by DAS Turret with DAS Cannon Performance ------------- Evolutions (1) 500 Regions Visited (5) 1000 Robots Destroyed (74) 370 Value Destroyed (1168) 1168 Prototype IDs (30) 600 Alien Tech Used (0) 0 Bonus (300) 300 TOTAL SCORE: 3938 Bonus ------- Aligned with FarCom 300 Cogmind --------- Core Integrity 0/400 Matter 87/300 Energy 253/265 System Corruption 5% Temperature Cool (2) Movement Walking (190) Ox1 Location -9/Exiles Parts ------- > --- POWER (1) -------- Improved Ion Engine > --- PROPULSION (2) --- Advanced Myomer Leg Advanced Myomer Leg > --- UTILITY (3) ------ High-capacity Storage Unit Cloak of Protection Utility Shielding > --- WEAPON (3) ------- Autogun Autogun Mini Grenade Launcher > --- INVENTORY (20) --- Reinforced Fission Core Light Treads Improved Treads Improved Treads Improved Heat Sink Experimental Heat Sink Large Storage Unit High-capacity Matter Pod (200) Gravity Neutralizer Seismic Detector Advanced Weapon Cycler Light Armor Plating Thief Drone Bay (2/3) AS-neutralizer No. 17b Autogun Autogun 8R-AWN's Boregun 8R-AWN's Boregun Rocket Launcher Makeshift Axe Peak State ------------ > --- POWER ------------ Improved Ion Engine > --- PROPULSION ------- Advanced Myomer Leg Advanced Myomer Leg > --- UTILITY ---------- High-capacity Storage Unit Cloak of Protection Utility Shielding > --- WEAPON ----------- Autogun 8R-AWN's Boregun 8R-AWN's Boregun > --- INVENTORY -------- Reinforced Fission Core Light Treads Improved Treads Improved Treads Improved Heat Sink Experimental Heat Sink Large Storage Unit High-capacity Matter Pod Gravity Neutralizer Seismic Detector Advanced Weapon Cycler Light Armor Plating Thief Drone Bay Autogun Autogun Autogun Rocket Launcher Mini Grenade Launcher Makeshift Axe [Rating: 56] Favorites ----------- Power Ion Engine Engine Ion Engine Propulsion Improved Treads Treads Improved Treads Leg Aluminum Leg Utility Seismic Detector Device Seismic Detector Storage High-capacity Storage Unit Protection Core Shielding Weapon Autogun Energy Cannon Advanced Beam Cannon Ballistic Gun Autogun Launcher Mini Grenade Launcher Slashing Weapon Makeshift Axe Build | -11 -10 -10 -9 -9 -9 ------- Run | Yrd Mat Min Mat Min Exi Slots Evolved 2 | . . . 2 . . Power . | . . . . . . Propulsion . | . . . . . . Utility 1 | . . . 1 . . Weapon 1 | . . . 1 . . Parts Attached 51 | 7 3 8 18 1 14 Power 4 | 1 . . 2 . 1 Engine 4 | 1 . . 2 . 1 Core . | . . . . . . Reactor . | . . . . . . Propulsion 12 | 2 1 3 4 . 2 Treads 4 | . . . 4 . . Leg 8 | 2 1 3 . . 2 Wheel . | . . . . . . Hover . | . . . . . . Flight . | . . . . . . Utility 15 | 2 2 3 2 . 6 Device 9 | 1 . 3 1 . 4 Storage 3 | 1 2 . . . . Processor . | . . . . . . Hackware . | . . . . . . Protection 3 | . . . 1 . 2 Artifact . | . . . . . . Weapon 20 | 2 . 2 10 1 5 Energy Gun . | . . . . . . Energy Cannon 1 | . . . 1 . . Ballistic Gun 16 | 2 . 1 8 . 5 Ballistic Cannon . | . . . . . . Launcher 2 | . . 1 . 1 . Special Weapon . | . . . . . . Impact Weapon . | . . . . . . Slashing Weapon 1 | . . . 1 . . Piercing Weapon . | . . . . . . Special Melee Weapon . | . . . . . . Unidentified Prototypes 7 | . . 1 1 . 5 Parts Lost 5 | . . 2 2 . 1 Power 2 | . . . 1 . 1 Propulsion 1 | . . 1 . . . Utility 1 | . . . 1 . . Weapon 1 | . . 1 . . . Highest Loss Streak 2 | . . 2 2 . 1 To Critical Strikes . | . . . . . . Average Backups 16 | 3 7 18 19 20 17 Power 1 | . 1 2 . 1 1 Propulsion 4 | 1 2 5 6 5 4 Utility 4 | . 2 6 3 5 6 Weapon 5 | . 1 4 9 9 4 Tool/Special . | . . . . . . Unused Backups 25 | . . 3 6 . 16 Power 4 | . . . . . 4 Propulsion 9 | . . . 4 . 5 Utility 8 | . . 2 1 . 5 Weapon 4 | . . 1 1 . 2 Tool/Special . | . . . . . . Average Slot Usage (%) 94 | . 100 99 99 100 72 Engine 12 | . 14 14 10 11 11 Treads 11 | . . . 18 22 20 Leg 12 | . 28 27 3 . 1 Device 12 | . 14 14 10 11 10 Storage 12 | . 14 14 11 11 11 Protection 6 | . . . 11 11 11 Ballistic Gun 24 | . 28 27 31 32 5 Peak Build Rating 56 | 7 8 15 20 18 56 Average Rating 13 | 4 7 9 17 18 15 On Entrance 10 | . 7 8 10 18 18 Avg Prop Armor Cover (%) . | . . . . . . Naked Turns . | . . . . . . Heaviest Build 71 | 15 50 52 56 56 71 Greatest Support 60 | 20 20 20 46 46 60 Greatest Overweight (x) 4 | 4 2 2 2 1 1 Average Overweight (x) 1 | 1 . 2 1 1 1 Largest Inventory Capacity 20 | 8 20 20 20 20 20 Average Capacity 18 | 7 15 20 20 20 20 Most Carried 20 | 4 18 20 20 20 20 Average Carried 16 | 3 7 18 19 20 17 Final Capacity 20 | 8 20 20 20 20 20 Final Carried 20 | 4 18 20 20 20 20 Class Distribution -------------------- 50% | Mutant 38% | Tank 10% | Scavenger-Mutant Dominant Class ---------------- Mutant | -10/Materials Scavenger-Mutant | -10/Mines Tank | -9/Materials Tank | -9/Mines Mutant | -9/Exiles Resources | -11 -10 -10 -9 -9 -9 ----------- Run | Yrd Mat Min Mat Min Exi Matter Collected 2443 | 300 286 258 808 389 402 Remotely . | . . . . . . Salvage Created 2189 | 88 397 221 1080 374 29 Parts 157 | 7 32 26 71 21 . Haulers Intercepted 4 | . 1 . 3 . . Recyclers Shooed 2 | . . 1 1 . . Parts Field Recycled . | . . . . . . Retrieved Matter . | . . . . . . Parts Self-Destructed . | . . . . . . Prevented . | . . . . . . Parts Restored . | . . . . . . Kills | -11 -10 -10 -9 -9 -9 ------- Run | Yrd Mat Min Mat Min Exi Combat Hostiles Destroyed 57 | . 12 9 17 14 5 Guns 47 | . 12 5 17 10 3 AOE 10 | . . 4 . 4 2 Classes Destroyed 12 | 2 4 . 3 3 . Worker 2 | . . . 2 . . Builder 4 | . . . 4 . . Tunneler 4 | 1 . 3 . . . Hauler 4 | . 1 . 3 . . Recycler 6 | 1 . 1 4 . . Watcher 6 | . 2 . 4 . . Swarmer 32 | . 6 9 13 4 . Grunt 8 | . 6 . . 2 . Brawler 1 | . . . . 1 . Duelist 1 | . . . . 1 . Sentry 6 | . . . 4 2 . Assembled 9 | . . . . 4 5 Best Kill Streak 10 | 2 3 9 10 4 4 Combat Bots Only 7 | . 3 6 7 4 4 Max Kills in Single Turn 3 | 1 1 3 2 2 1 Gunslinging 1 | . . . 1 . . Exploded 2 | . . 2 . 2 1 Melee . | . . . . . . Uniques/NPCs Destroyed 1 | . . . . . 1 8R-AWN (-9/Exiles) Combat | -11 -10 -10 -9 -9 -9 -------- Run | Yrd Mat Min Mat Min Exi Hostile Shots Fired 231 | . 52 31 80 29 39 Missed 68 | . 14 8 26 12 8 Hits 163 | . 38 23 54 17 31 Projectile 163 | . 38 23 54 17 31 Critical Strikes 9 | . . 1 1 . 7 Actively Blocked 1 | . . . . . 1 Damage Taken 2476 | . 354 220 558 183 1161 Core 490 | . 54 33 59 38 306 Absorbed by Shields . | . . . . . . Redirected to Shielding 69 | . . . 12 7 50 Core Remaining (%) 82 | 100 . 65 . . . Volleys Fired 181 | 5 50 21 53 24 28 Largest 3 | 2 2 2 3 3 3 Hottest 90 | 40 40 40 69 69 90 Shots Fired 431 | 10 100 38 157 69 57 Gun 412 | 10 100 34 156 67 45 Cannon . | . . . . . . Launcher 19 | . . 4 1 2 12 Special . | . . . . . . Kinetic 412 | 10 100 34 156 67 45 Thermal . | . . . . . . Explosive 19 | . . 4 1 2 12 Electromagnetic . | . . . . . . Robot Hit Streak 10 | 2 6 6 10 6 10 Robot Miss Streak 6 | 3 6 4 4 3 3 Penetration Max . | . . . . . . Secondary Targets 5 | . 1 . 2 2 . Max Gunslinging Chain 1 | . 1 . 1 1 . Shots Hit Robots 221 | 4 55 16 85 35 26 Core Hits 119 | 2 24 14 40 21 18 Critical Kills 1 | . . . . . 1 Critical Parts Destroyed . | . . . . . . Critical Strikes 3 | . . . . . 3 Destroy 3 | . . . . . 3 Melee Attacks 13 | . . . 13 . . Impact . | . . . . . . Slashing 13 | . . . 13 . . Piercing . | . . . . . . Sneak Attacks 5 | . . . 5 . . Combat Hostiles . | . . . . . . Follow-up Attacks . | . . . . . . Damage Inflicted 4564 | 47 703 422 1724 817 851 Guns 3265 | 47 700 199 1372 538 409 Cannons . | . . . . . . Explosions 936 | . . 216 . 278 442 Melee 348 | . . . 348 . . Ramming 15 | . 3 7 4 1 . Kinetic 3265 | 47 700 199 1372 538 409 Thermal . | . . . . . . Explosive 936 | . . 216 . 278 442 Electromagnetic . | . . . . . . Impact . | . . . . . . Slashing 348 | . . . 348 . . Piercing . | . . . . . . Highest Corruption 5 | . . . 5 5 5 Average Corruption 5 | . . . 5 5 5 Corruption Purged . | . . . . . . Corruption Blocked . | . . . . . . Effects 79 | . . . 1 42 36 Message Errors 22 | . . . . 13 9 Matter Fused 15 | . . . 1 5 9 Heat Flow Errors 11 | . . . . 5 6 Energy Discharges 7 | . . . . 4 3 Data Loss (minor) 13 | . . . . 10 3 Data Loss (major) 5 | . . . . . 5 Misfires 2 | . . . . 2 . Alerts 2 | . . . . 2 . Weapon Failures 2 | . . . . 1 1 Overload Shots . | . . . . . . Overflow Damage 93 | . . 31 62 . . Projectiles . | . . . . . . Explosions 31 | . . 31 . . . Melee 62 | . . . 62 . . Knockbacks . | . . . . . . Impact . | . . . . . . Kinetic . | . . . . . . Secondary . | . . . . . . Self-Inflicted Damage 106 | . . 28 . . 78 Shots 3 | . . 1 . . 2 Rammed 1 | . . . . 1 . Targets Rammed 4 | . 1 1 1 1 . Kicked 2 | . 1 1 . . . Crushed 1 | . . . 1 . . Highest Temperature 273 | . . . 176 273 267 Average Temperature 66 | . . . 47 75 79 Received Heat Transfer 219 | . 96 . 99 24 . Effects 2 | . . . . 1 1 Energy Bleed 2 | . . . . 1 1 Siege Activations . | . . . . . . Martial Activations . | . . . . . . Shielding Activations . | . . . . . . Robots Disrupted . | . . . . . . Combat Hostiles . | . . . . . . Robots Corrupted . | . . . . . . Combat Hostiles . | . . . . . . Parts Fried . | . . . . . . Impact Corruptions . | . . . . . . Robots Melted . | . . . . . . Combat Hostiles . | . . . . . . Parts Melted . | . . . . . . Heat Transferred . | . . . . . . Parts Sabotaged . | . . . . . . Parts Stolen . | . . . . . . Parts Stripped . | . . . . . . Power Chain Reactions . | . . . . . . Alert | -11 -10 -10 -9 -9 -9 ------- Run | Yrd Mat Min Mat Min Exi Maximum Alert Level 1 | . . . 1 . . Low Security (%) 97 | 100 100 100 90 100 . Level 1 2 | . . . 9 . . Level 2 . | . . . . . . Level 3 . | . . . . . . Level 4 . | . . . . . . Level 5 . | . . . . . . High Security . | . . . . . . Max Security . | . . . . . . Peak Influence 274 | 5 140 159 274 97 . Initial 50 | . . 28 . 50 . Average 46 | 1 58 21 86 15 . Influence Increases 1618 | 10 473 274 634 227 . Destroy 0b10 Robot/C 960 | . 240 180 340 200 . Destroy 0b10 Robot/NC 130 | 10 15 20 85 . . Destroy Leader 180 | . 46 30 84 20 . Successful Hack 36 | . 21 . 15 . . Select Force Hacks 120 | . 60 . 60 . . Disable Machine 30 | . 15 . 15 . . Destroy Structure 57 | . 1 29 20 7 . Lose Combat Pursuer 105 | . 75 15 15 . . Influence Decreases 1618 | 10 399 348 504 357 . Entered New Map 126 | . . 46 . 80 . Time Decay 1452 | 10 399 282 484 277 . Lost Part 40 | . . 20 20 . . Squads Dispatched 7 | . 4 . 2 1 . Investigation 6 | . 4 . 2 . . Extermination . | . . . . . . Reinforcement . | . . . . . . Assault 1 | . . . . 1 . Garrison . | . . . . . . Intercept . | . . . . . . Searches Triggered . | . . . . . . Construction Impeded . | . . . . . . Haulers Reinforced . | . . . . . . Active Scanning Responses . | . . . . . . Cargo Convoy Interrupts . | . . . . . . Stealth | -11 -10 -10 -9 -9 -9 --------- Run | Yrd Mat Min Mat Min Exi Distress Signals 9 | . 4 . 4 1 . Communications Jammed . | . . . . . . Distress Signals . | . . . . . . Times Spotted 83 | . 25 9 25 15 9 Peak Tracking Total 10 | . 3 3 10 4 9 Tactical Retreats 8 | . 5 1 1 . 1 Traps | -11 -10 -10 -9 -9 -9 ------- Run | Yrd Mat Min Mat Min Exi Traps Triggered 3 | . 2 . 1 . . Indirectly . | . . . . . . Trap Hack Attempts . | . . . . . . Triggered . | . . . . . . Disarmed . | . . . . . . Reprogrammed . | . . . . . . Reused . | . . . . . . Traps Extracted . | . . . . . . Installed . | . . . . . . Triggered . | . . . . . . Machines | -11 -10 -10 -9 -9 -9 ---------- Run | Yrd Mat Min Mat Min Exi Machines Disabled 8 | . 1 . 1 . 6 Max in Single Turn 2 | . 1 . 1 . 2 Machines Repaired . | . . . . . . Machines Dismantled . | . . . . . . Machines Sabotaged . | . . . . . . Overloaded Fab Kills . | . . . . . . Hacking | -11 -10 -10 -9 -9 -9 --------- Run | Yrd Mat Min Mat Min Exi Machines Accessed 17 | . 7 1 7 . 2 Terminals 10 | . 5 . 5 . . Fabricators . | . . . . . . Repair Stations . | . . . . . . Recycling Units 4 | . 2 . 2 . . Scanalyzers . | . . . . . . Garrison Access . | . . . . . . Total Hacks 36 | . 18 1 15 . 2 Successful 21 | . 10 1 8 . 2 Failed 14 | . 7 . 7 . . Catastrophic 2 | . 1 . 1 . . Database Lockouts 1 | . 1 . . . . Manual 30 | . 16 . 13 . 1 Terminals 29 | . 16 . 13 . . Fabricators . | . . . . . . Repair Stations . | . . . . . . Recycling Units 4 | . 2 . 2 . . Scanalyzers . | . . . . . . Garrison Access . | . . . . . . Terminal Hacks 6 | . 2 1 1 . 2 Record 1 | . . . . . 1 Part Schematic 2 | . 1 . 1 . . Robot Schematic 1 | . 1 . . . . Open Door 1 | . . 1 . . . Proto ID Catalog 1 | . . . . . 1 Fabricator Hacks . | . . . . . . Repair Station Hacks . | . . . . . . Recycling Unit Hacks . | . . . . . . Scanalyzer . | . . . . . . Garrison Access Hacks . | . . . . . . Unauthorized Hacks 15 | . 8 . 7 . . Terminals 11 | . 6 . 5 . . Operators 1 | . 1 . . . . Skim 10 | . 5 . 5 . . Fabricators . | . . . . . . Repair Stations . | . . . . . . Recycling Units 4 | . 2 . 2 . . Tunnel 4 | . 2 . 2 . . Scanalyzers . | . . . . . . Garrison Access . | . . . . . . Data Cores Recovered . | . . . . . . Used . | . . . . . . Hacking Detections 9 | . 5 . 4 . . Full Trace Events . | . . . . . . Feedback Events . | . . . . . . Feedback Blocked . | . . . . . . Robot Schematics Acquired 1 | . 1 . . . . Robots Built . | . . . . . . Authchips . | . . . . . . Time . | . . . . . . Total Robot Build Rating . | . . . . . . Part Schematics Acquired 2 | . 1 . 1 . . Parts Built . | . . . . . . Authchips . | . . . . . . Time . | . . . . . . Total Part Build Rating . | . . . . . . Part Studies Acquired . | . . . . . . Parts Repaired . | . . . . . . Time . | . . . . . . Parts Recycled . | . . . . . . Recycled Matter . | . . . . . . Retrieved Matter . | . . . . . . Retrieved Components . | . . . . . . Parts Scanalyzed . | . . . . . . Part Schematics Acquired . | . . . . . . Parts Damaged . | . . . . . . Bothacking | -11 -10 -10 -9 -9 -9 ------------ Run | Yrd Mat Min Mat Min Exi Used RIF Installer . | . . . . . . Robots Hacked . | . . . . . . Non-combat . | . . . . . . Combat . | . . . . . . Robot Hacks Applied . | . . . . . . Relay Couplers Released . | . . . . . . Fabnet Peak Effective % . | . . . . . . Robots Rewired . | . . . . . . Allies Hacked . | . . . . . . Hacks Repelled . | . . . . . . Allies | -11 -10 -10 -9 -9 -9 -------- Run | Yrd Mat Min Mat Min Exi Total Allies 1 | . . . . 1 . Largest Group 1 | . . . . 1 . Highest-Rated Group 31 | . . . . 31 . Highest-Rated Ally 31 | . . . . 31 . Total Orders 9 | . . . . . 9 RETURN 9 | . . . . . 9 Ally Attacks 64 | . . . . 4 60 Total Damage 432 | . . . . 42 390 Kills 1 | . . . . . 1 Allies Corrupted . | . . . . . . Allies Melted . | . . . . . . Intel | -11 -10 -10 -9 -9 -9 ------- Run | Yrd Mat Min Mat Min Exi Active Infowar (turns) 9430 | 3 2087 1970 2018 1652 1700 Seismic 9389 | 3 2087 1970 2018 1652 1659 Cloaking 41 | . . . . . 41 Robot Analysis Total . | . . . . . . Derelict Logs Recovered 2 | . . 2 . . . Drone Launches 21 | . . . . . 21 Drone Recoveries 20 | . . . . . 20 Exploration | -11 -10 -10 -9 -9 -9 ------------- Run | Yrd Mat Min Mat Min Exi Turns Passed 10024 | 115 2087 2067 2071 1652 2032 Spaces Moved 3281 | 62 545 762 622 511 779 Core 28 | 28 . . . . . Treads 1762 | . . . 516 511 735 Legs 1491 | 34 545 762 106 . 44 Wheels . | . . . . . . Hover . | . . . . . . Flight . | . . . . . . Fastest Speed 50 | 50 120 260 240 240 190 Average Speed 231 | 139 173 260 243 240 237 Slowest Speed 260 | 250 260 260 260 240 240 Overloaded Moves . | . . . . . . Propulsion Burnouts . | . . . . . . Robots Hopped . | . . . . . . Potential Cave-ins . | . . . . . . Cave-ins Triggered 1 | . . . . . 1 Exploration Rate (%) 59 | 4 64 99 53 65 70 Regions Visited 5 Branch Regions 3 Pre-discovered Areas 9 | . 5 1 2 . 1 Known Exits Taken 1 | . . 1 . . . Unknown Exits Taken 4 | 1 1 . 1 1 . Scrap Searched 1 | . . 1 . . . Spaces Dug 59 | . . 26 17 4 12 Terrain Destroyed 75 | . . 32 17 7 19 Melee 8 | . . . 8 . . Projectile . | . . . . . . AOE 67 | . . 32 9 7 19 Terrain Rammed . | . . . . . . Walls Destroyed . | . . . . . . Machines Disabled . | . . . . . . Actions | -11 -10 -10 -9 -9 -9 --------- Run | Yrd Mat Min Mat Min Exi Total 5386 | 77 1583 814 1080 897 935 Wait 1713 | . 974 . 321 360 58 Move 3276 | 61 544 761 621 510 779 Hop . | . . . . . . Pick Up 64 | 4 11 6 21 . 22 Fast Attach 18 | 7 . 2 6 . 3 Attach 17 | . . 2 6 . 9 Detach 3 | . . 1 . . 2 Swap 35 | . 3 10 12 2 8 Drop 62 | . . 10 26 . 26 Fire 181 | 5 50 21 53 24 28 Melee 13 | . . . 13 . . Ram . | . . . . . . Kick 2 | . 1 1 . . . Crush 2 | . . . 1 1 . Escape Stasis . | . . . . . . Rewire . | . . . . . . Trap . | . . . . . . Miscellaneous . | . . . . . . Route ------- -11/Scrapyard -10/Materials (discovered 6 exits: *Mat x3 / *Min x2 / Sub) -10/Mines (discovered 2 exits: *Mat x2) -9/Materials (discovered 3 exits: [*Mat] / [*Min x2]) -9/Mines -9/Exiles (discovered 1 exit: [*Min]) History --------- Turn | Location | Event 13 | -11/Scrapyard | Discovered new exit (range 16) 116 | -11/Scrapyard | Entered Materials 302 | -10/Materials | Discovered new exit (range 15) 313 | -10/Materials | Build established: Mutant 325 | -10/Materials | Central database locked down 572 | -10/Materials | Discovered new exit (range 15) 704 | -10/Materials | Discovered new exit (range 6) 854 | -10/Materials | Learned location of Mines (-10) 891 | -10/Materials | Learned location of Subcaves (-10) 917 | -10/Materials | Identified exit to Materials 917 | -10/Materials | Identified exit to Subcaves 938 | -10/Materials | Learned Storage trap positions 979 | -10/Materials | Loaded intel: 8 terminal locations 2203 | -10/Materials | Entered Mines 2216 | -10/Mines | Met a Derelict bent on vengeance 3155 | -10/Mines | Discovered exit to Materials (range 8) 3172 | -10/Mines | Found the Drone Emporium 3184 | -10/Mines | Found Prototype Device 3184 | -10/Mines | Identified Thief Drone Bay 3313 | -10/Mines | A weapon hastily lodged in a ceiling crevice suddenly fell to the ground 3569 | -10/Mines | Build established: Scavenger-Mutant 3933 | -10/Mines | Learned 2 Materials zone layouts 4270 | -10/Mines | Entered Materials 4270 | -9/Materials | Evolved 2 slots: Utility x1, Weapon x1 4612 | -9/Materials | Destroyed 7 combat bots 4625 | -9/Materials | Build established: Tank 4870 | -9/Materials | Discovered new exit (range 8) 5137 | -9/Materials | Discovered new exit (range 8) 5485 | -9/Materials | Discovered new exit (range 10) 6341 | -9/Materials | Entered Mines 6702 | -9/Mines | Met a Derelict testing a Signal Generator 7145 | -9/Mines | Assembled infested the area 7150 | -9/Mines | Assisted by a Guerilla fighting off Assembled 7166 | -9/Mines | Deemed a non-threat by the Exiles lab entrance 7166 | -9/Mines | Discovered new exit (range 5) 7993 | -9/Mines | Entered Exiles 8053 | -9/Exiles | Met 8R-AWN 8093 | -9/Exiles | Met EX-HEX 8187 | -9/Exiles | Met EX-DEC 8278 | -9/Exiles | Discovered new exit (range 14) 8300 | -9/Exiles | Build established: Mutant 8481 | -9/Exiles | Learned location of Zion (-7) 8632 | -9/Exiles | Met EX-BIN 8661 | -9/Exiles | Aligned with FarCom system 8663 | -9/Exiles | Given EX-Vault access code 8721 | -9/Exiles | Opened EX-Vault 8733 | -9/Exiles | Found Cloak of Protection 8736 | -9/Exiles | Found Supersonic Drone Bay 8785 | -9/Exiles | Warned to stay clear of 0b10 Research branches 9685 | -9/Exiles | Attacked by the Exiles 9839 | -9/Exiles | Found Prototype Device 9842 | -9/Exiles | Found Prototype Ballistic Gun 9884 | -9/Exiles | Allies destroyed 8R-AWN 9901 | -9/Exiles | Identified 8R-AWN's Boregun 9902 | -9/Exiles | Found 8R-AWN's Boregun 9903 | -9/Exiles | Identified AS-neutralizer No. 17b 9949 | -9/Exiles | Build established: Tank 10015 | -9/Exiles | Core integrity fell below 50% 10018 | -9/Exiles | Crushed by falling debris 10018 | -9/Exiles | Core integrity fell below 20% 10025 | -9/Exiles | Destroyed by DAS Turret with DAS Cannon Last Messages --------------- 09937_ as-96224 suffers critical hit (Destroy). 09937_ as-96224 destroyed. 09944_ Acquired 10 matter. 09947_ System corrupted: Matter fused (-5). 09948_ Acquired 2 matter. 09952_ Acquired 10 matter. 09956_ Acquired 1 matter. 09968_ The unstable cave ceiling collapses. 09973_ System corrupted: Substantial component data lost. 09973_ Acquired 14 matter. 09997_ System corrupted: Component data lost. 10000_ System corrupted: Mni. Grenade Launcher failed to launch. 10002_ Knocked back. 10003_ Acquired 2 matter. 10006_ Knocked back. 10018_ The unstable cave ceiling collapses. 10018_ Crushed by falling debris. 10023_ Acquired 3 matter. Map ----- +----------------------------------------------------+ | #??????????????????????????????????????#"###??# | | #?????????????????????????????????????????????# | | ??????????????????????????????????????????????# | | #????????????????????????????????????????????## | | #????????????#######?????????????????????????#" | | #######??????#!!! "#?????????????????????????#" | | #""##?????# "#?????????????????????????#" | | #?????# "#?????????????????????????#" | | ##???## " #????????????##???????????#" | | [ #####" "#???????????? """????????#" | | !== ## ""#????????????" """#???????## | | [ #" ##???????????"" ?????????# | | "## #???????????"" ?????????#" | | ###### ######????????"" "#????????#" | | ?????### # #???????? ""?????????#" | | ####### #?????????" "?????????##" | | " ##?????????# #????????##"" | | ! =!"#"; #####???### ###?######"" | | ! =! #### """#####X# #"###""""""" | | ! ! "#??#" """""" " "" | | !"""""["###??#"# " """ " | | #######"" #???#### " " | | ??????# # #??????### | | ??????# # #????????##; | | ??????# ###?????????### | | ??????# #?????????????## @%% | | ??????###?????????????### | | ??????????????????????# """""" | | ??????????????????????# ######" | | ??????????????????????# ""##????## | | ??????????????????????# """##??????? | | ??????????????????????# """##???????? | | ??????????????????????# "" ""#????????? | | ??????????????????????#"" ########??# | | ??????????????????????#"" ## #### | | ??????????????????????#" """ | | ??????????????????????##" t | | ???????????????????????#" | | ????????????????????????# | | ????????????????????????#" " | | ?????????????????????????"""" ""## | | ?????????????????????????"" ""#### | | ?????????????????????????? """"##??# | | ?????????????????????????""" """#??## | | ?????????????????????????? ""##??#! | | ??????????????????????????"" """##???#" | | ???????????????????????????""" #?????#" | | ?????????????????????????????""" #??????#!!" | | ??????????????????????????????? ???????#### | | ?????????????????????????????????# ???????????? | +----------------------------------------------------+ Best States ------------- Heat Dissipation 42 Energy Generation 12 Energy Capacity 265 Matter Stores 300 Matter Capacity 300 Sight Range 16 Terrain Scan Density 10 Cloak Strength 5 Additional Mass Support 12 Armor Coverage 150 Core Shielding 20 Utility Shielding 33 Evasion (%) 55 Recoil Reduction 2 Item Schematics ----------------- Assault Rifle | -10/Materials | Hacked Hcp. Storage Unit | -9/Materials | Hacked Robot Schematics ------------------ M-13 Machinist | -10/Materials | Hacked Fabricated ------------ Nothing Repaired ---------- Nothing Studied --------- None Alien Tech Used ----------------- None Achievements -------------- None Challenges ------------ None Game ------ Seed SystemFusionRigger Manual? 0 Play Time 00:40:30 Cumulative 444.7 hours Start 2026.03.21 @ 13:54:45 End 2026.04.06 @ 10:55:19 Sessions 5 Manual Loads 0 Difficulty Rogue Special Mode None Game No. 291 Rogue 291 Adventurer 0 Explorer 0 Win Type - Total 29 Types 10/0/9/1/1/0/3/2/2/1 Lore% 84 Gallery% 78 Achievement% 73 Wizard Run 0 Options --------- Layout 1 ASCII 0 Keyboard 0 Movement Mouse Keybinds 0 Fullscreen 2 Font 24/Smallcaps Map View 50x35 Zoom Use 0% Tactical HUD 1 Map Filters NONE Filters NONE Steam 1 RUN: f995f8cd-9484-4e60-b3a8-2409935e955a